Cogmind - Beta 16.1 @@@ ROGUE MODE // 2026.04.01 @ 23:23:56 Player: mephiles96 Result: Destroyed by H-77 Assassin with Coil Gun Performance ------------- Evolutions (7) 3500 Regions Visited (15) 3000 Robots Destroyed (66) 330 Value Destroyed (1923) 1923 Prototype IDs (26) 520 Alien Tech Used (0) 0 Bonus (439) 439 TOTAL SCORE: 9712 Bonus ------- Follower Combat Kills 139 Aligned with FarCom 300 Cogmind --------- Core Integrity 0/1300 Matter 77/300 Energy 99/100 System Corruption 3% Temperature Cool (0) Movement Core (50) Location -3/Armory Parts ------- > --- POWER (1) -------- (None) > --- PROPULSION (8) --- (None) > --- UTILITY (10) ----- (None) > --- WEAPON (2) ------- Segregator > --- INVENTORY (5) ---- Improved Recalibrator Peak State ------------ > --- POWER ------------ Micro Antimatter Reactor > --- PROPULSION ------- Antigrav Array Antigrav Array Antigrav Array Improved VTOL Module Biomechanical Wings > --- UTILITY ---------- Power Amplifier Advanced Cooling System Medium Storage Unit Structural Scanner Enhanced Optical Array Improved Terrain Scanner 0b10 Alert Chip Improved Shock Absorption System Hacking Suite Hacking Suite > --- WEAPON ----------- Nova Cannon Nova Cannon > --- INVENTORY -------- Angular Momentum Engine Antigrav Array Experimental Sensor Array Improved Recalibrator Great Maul [Rating: 124] Favorites ----------- Power Light Nuclear Core Engine Light Ion Engine Power Core Light Nuclear Core Reactor Micro Antimatter Reactor Propulsion Improved VTOL Module Treads Light Treads Leg Aluminum Leg Wheel Wheel Hover Unit Antigrav Array Flight Unit Improved VTOL Module Utility Hacking Suite Device Improved Terrain Scanner Storage Large Storage Unit Processor 0b10 Alert Chip Hackware Hacking Suite Protection Improved Light Armor Plating Weapon Improved EM Shotgun Energy Gun Improved EM Shotgun Energy Cannon Nova Cannon Ballistic Gun Flak Gun Ballistic Cannon Mass Driver Launcher Rocket Launcher Special Weapon Mining Laser Impact Weapon Great Maul Slashing Weapon Segregator Build | -11 -10 -10 -10 -9 -8 -7 -6 -6 -6 -5 -4 -4 -4 -3 -3 ------- Run | Yrd Mat Min Exi Min Mat Fac Fac Low Low Fac Fac Upp Upp Res Arm Slots Evolved 14 | . . . . . 4 2 2 . . 2 2 . . 2 . Power . | . . . . . . . . . . . . . . . . Propulsion 6 | . . . . . 2 2 . . . 1 1 . . . . Utility 8 | . . . . . 2 . 2 . . 1 1 . . 2 . Weapon . | . . . . . . . . . . . . . . . . Parts Attached 76 | 8 10 6 . . 11 8 4 1 . 8 . 1 . 6 13 Power 8 | 1 1 1 . . 1 . 1 . . 1 . . . 1 1 Engine 4 | 1 1 . . . . . . . . 1 . . . . 1 Core 3 | . . 1 . . 1 . 1 . . . . . . . . Reactor 1 | . . . . . . . . . . . . . . 1 . Propulsion 30 | 2 1 2 . . 7 6 1 . . . . . . 4 7 Treads 4 | 2 1 . . . 1 . . . . . . . . . . Leg 1 | . . 1 . . . . . . . . . . . . . Wheel 4 | . . 1 . . 2 . . . . . . . . 1 . Hover 3 | . . . . . . . . . . . . . . 3 . Flight 18 | . . . . . 4 6 1 . . . . . . . 7 Utility 21 | 3 3 1 . . 3 1 2 . . 5 . . . 1 2 Device 10 | 2 . . . . 1 . . . . 4 . . . 1 2 Storage 3 | 1 1 . . . 1 . . . . . . . . . . Processor 2 | . . . . . 1 . . . . 1 . . . . . Hackware 2 | . . . . . . . 2 . . . . . . . . Protection 4 | . 2 1 . . . 1 . . . . . . . . . Artifact . | . . . . . . . . . . . . . . . . Weapon 17 | 2 5 2 . . . 1 . 1 . 2 . 1 . . 3 Energy Gun 6 | 1 3 2 . . . . . . . . . . . . . Energy Cannon 2 | . . . . . . . . . . . . . . . 2 Ballistic Gun 3 | 1 . . . . . . . . . 2 . . . . . Ballistic Cannon 1 | . . . . . . . . . . . . 1 . . . Launcher 1 | . . . . . . . . 1 . . . . . . . Special Weapon 1 | . 1 . . . . . . . . . . . . . . Impact Weapon 2 | . 1 . . . . 1 . . . . . . . . . Slashing Weapon 1 | . . . . . . . . . . . . . . . 1 Piercing Weapon . | . . . . . . . . . . . . . . . . Special Melee Weapon . | . . . . . . . . . . . . . . . . Unidentified Prototypes 2 | . 1 . . . . . 1 . . . . . . . . Corrupted Parts 1 | . . . . . . . 1 . . . . . . . . System Corruption 1 | . . . . . . . 1 . . . . . . . . Parts Lost 40 | . . 5 . . . . . 5 . . . 4 . 6 20 Power 3 | . . 1 . . . . . 1 . . . . . . 1 Propulsion 17 | . . 1 . . . . . 1 . . . 4 . 2 9 Utility 11 | . . 1 . . . . . 1 . . . . . 1 8 Weapon 9 | . . 2 . . . . . 2 . . . . . 3 2 Highest Loss Streak 11 | . . 3 . . . . . 3 . . . 4 . 4 11 To Critical Strikes . | . . . . . . . . . . . . . . . . Average Backups 11 | 6 11 14 14 14 14 10 9 8 8 9 9 10 10 9 5 Power 1 | . 1 1 1 1 1 1 1 1 1 1 1 1 1 1 . Propulsion 3 | 3 3 5 5 5 5 2 2 1 1 . . . . . 1 Utility 4 | . 3 5 5 5 4 4 4 4 6 6 6 7 7 6 1 Weapon 2 | 1 2 2 3 2 2 2 2 . . 1 2 2 2 1 . Tool/Special . | . . . . . . . . . . . . . . . . Unused Backups 21 | 1 7 . 2 2 1 1 . . . 2 . . . 1 4 Power 2 | . . . . . . 1 . . . 1 . . . . . Propulsion 7 | . 4 . . . 1 . . . . . . . . . 2 Utility 7 | . . . 2 1 . . . . . 1 . . . 1 2 Weapon 5 | 1 3 . . 1 . . . . . . . . . . . Tool/Special . | . . . . . . . . . . . . . . . . Average Slot Usage (%) 91 | . 99 91 100 100 85 98 98 93 93 98 94 87 73 74 49 Engine 4 | . 14 7 . . . . . . . . 5 5 5 3 . Core 4 | . . 2 14 14 9 7 6 5 6 4 . . . . . Treads 8 | . 28 13 . . 1 . . . . . . . . . . Leg 3 | . . 1 14 14 6 . . . . . . . . . . Wheel 6 | . . 12 14 14 14 . . . . 5 5 3 . . . Flight 10 | . . . . . . 43 40 39 40 34 31 25 15 12 9 Device 7 | . 12 . . . 8 7 6 6 6 12 15 15 15 18 11 Storage 10 | . 14 14 14 14 9 7 6 6 6 5 5 5 5 4 2 Processor 3 | . . . . . 8 7 6 6 6 9 10 10 10 9 7 Hackware 3 | . . . . . . . 11 13 13 11 10 10 10 9 5 Protection 6 | . 1 13 14 14 9 7 6 3 . . . . . . . Energy Gun 15 | . 24 24 28 28 18 8 6 1 . . . . . . . Impact Weapon 1 | . 2 . . . . 5 6 5 6 3 5 2 . . . Peak Build Rating 124 | 8 13 16 17 18 32 45 56 56 49 67 64 67 54 110 124 Average Rating 31 | 6 11 13 16 17 28 44 52 50 49 60 64 60 54 75 64 On Entrance 39 | . 8 13 16 17 18 32 45 56 49 49 63 64 54 54 101 Avg Prop Armor Cover (%) 6 | . . 9 6 6 6 9 . . . 5 5 5 . 2 7 Naked Turns 3 | . . . . . . . . . . . . . . . 3 Heaviest Build 52 | 14 32 34 34 34 35 35 31 32 24 34 34 39 39 40 52 Greatest Support 84 | 40 40 40 10 10 30 31 32 32 31 37 37 37 22 84 84 Greatest Overweight (x) 6 | 1 . 3 3 3 3 1 . . . 1 . 1 1 2 6 Average Overweight (x) . | . . 2 3 3 2 . . . . . . . 1 . . Largest Inventory Capacity 15 | 8 15 15 15 15 15 15 10 10 10 10 10 10 10 10 10 Average Capacity 12 | 7 12 15 15 15 14 10 10 10 10 10 10 10 10 10 8 Most Carried 15 | 8 15 15 15 15 15 15 10 10 9 10 10 10 10 10 10 Average Carried 11 | 6 11 14 14 14 14 10 9 8 8 9 9 10 10 9 5 Final Capacity 15 | 8 15 15 15 15 15 10 10 10 10 10 10 10 10 10 5 Final Carried 15 | 8 15 15 14 14 15 10 10 8 9 10 10 10 10 7 1 Class Distribution -------------------- 57% | Mutant 7% | Hacker-Sprinter 6% | Scout 5% | Hacker-Skirmisher 4% | Hacker-Scout 4% | Scavenger-Scout 3% | Skirmisher 3% | Scavenger-Skirmisher Dominant Class ---------------- Mutant | -10/Materials Mutant | -10/Mines Mutant | -10/Exiles Mutant | -9/Mines Skirmisher | -8/Materials Scout | -7/Factory Hacker-Scout | -6/Factory Hacker-Sprinter | -6/Lower Caves Hacker-Sprinter | -6/Lower Caves Scavenger-Scout | -5/Factory Hacker-Ninja | -4/Factory Hacker-Mutant | -4/Upper Caves Hacker-Mutant | -4/Upper Caves Hacker-Skirmisher | -3/Research Hacker-Skirmisher | -3/Armory Resources | -11 -10 -10 -10 -9 -8 -7 -6 -6 -6 -5 -4 -4 -4 -3 -3 ----------- Run | Yrd Mat Min Exi Min Mat Fac Fac Low Low Fac Fac Upp Upp Res Arm Matter Collected 1347 | 304 170 75 . . 140 50 . 240 . 29 . 202 . 55 82 Remotely . | . . . . . . . . . . . . . . . . Salvage Created 2086 | 112 593 242 . 60 555 50 20 168 . 29 . 143 . 45 69 Parts 114 | 10 41 13 . 4 28 4 4 4 . . . 2 . 4 . Haulers Intercepted 1 | . . . . . 1 . . . . . . . . . . Recyclers Shooed 1 | . . 1 . . . . . . . . . . . . . Parts Field Recycled . | . . . . . . . . . . . . . . . . Retrieved Matter . | . . . . . . . . . . . . . . . . Parts Self-Destructed 7 | . . . . . . . . 5 . . . 2 . . . Prevented 3 | . . . . . . . . 2 . . . 1 . . . Parts Restored . | . . . . . . . . . . . . . . . . Kills | -11 -10 -10 -10 -9 -8 -7 -6 -6 -6 -5 -4 -4 -4 -3 -3 ------- Run | Yrd Mat Min Exi Min Mat Fac Fac Low Low Fac Fac Upp Upp Res Arm Combat Hostiles Destroyed 44 | . 15 8 . 2 8 . . 5 . . . 3 . 2 1 Guns 28 | . 13 7 . . 4 . . 2 . . . 2 . . . Cannons 3 | . . . . . . . . . . . . 1 . 2 . AOE 10 | . 2 1 . 2 3 . . 2 . . . . . . . Classes Destroyed 14 | 1 5 2 . . 1 1 . 2 . . . . . 1 1 Worker 3 | . 3 . . . . . . . . . . . . . . Builder 6 | . 2 . . . 3 . . . . . . . . 1 . Tunneler 6 | 5 . . . . 1 . . . . . . . . . . Hauler 1 | . . . . . 1 . . . . . . . . . . Operator 3 | . . . . . . 2 1 . . . . . . . . Watcher 4 | . 3 . . . . . . . . 1 . . . . . Swarmer 14 | . 9 3 . . . . . 2 . . . . . . . Grunt 22 | . 6 3 . 2 8 . . . . . . 3 . . . Duelist 1 | . . . . . . . . . . . . . . . 1 Sentry 1 | . . . . . . . . 1 . . . . . . . Demolisher 1 | . . 1 . . . . . . . . . . . . . Hunter 2 | . . . . . . . . 2 . . . . . . . Programmer 2 | . . . . . . . . . . . . . . 2 . Assembled 1 | . . 1 . . . . . . . . . . . . . Best Kill Streak 6 | 1 6 3 . 2 5 1 1 2 . 1 . 2 . 2 1 Combat Bots Only 4 | . 4 3 . 2 3 . . 2 . . . 2 . 2 1 Max Kills in Single Turn 2 | 1 2 1 . 2 2 1 1 1 . 1 . 1 . 1 1 Gunslinging . | . . . . . . . . . . . . . . . . Exploded 2 | . 1 1 . 2 2 . . 1 . . . . . . . Melee . | . . . . . . . . . . . . . . . . Uniques/NPCs Destroyed . | . . . . . . . . . . . . . . . . Combat | -11 -10 -10 -10 -9 -8 -7 -6 -6 -6 -5 -4 -4 -4 -3 -3 -------- Run | Yrd Mat Min Exi Min Mat Fac Fac Low Low Fac Fac Upp Upp Res Arm Hostile Shots Fired 438 | . 54 46 . 7 21 . . 93 . . . 24 . 48 145 Missed 150 | . 23 6 . 3 5 . . 42 . . . 3 . 20 48 Hits 288 | . 31 40 . 4 16 . . 51 . . . 21 . 28 97 Melee 26 | . . 1 . . . . . . . . . . . . 25 Projectile 262 | . 31 39 . 4 16 . . 51 . . . 21 . 28 72 AOE 5 | . . 4 . . . . . . . . . . . . 1 Critical Strikes 19 | . . 1 . . 1 . . 1 . . . . . 4 12 Damage Taken 5751 | . 316 636 . 46 405 49 . 596 . . . 460 . 663 2580 Core 1625 | . 49 76 . . 82 . . 88 . . . 19 . 47 1264 Absorbed by Shields . | . . . . . . . . . . . . . . . . Regen/Repaired (Parts) 76 | . 61 . . . . . . . . 15 . . . . . Core Remaining (%) 88 | 100 . . . 50 85 100 . . 89 100 . . 98 . . Volleys Fired 157 | 24 33 18 . 1 19 8 2 13 . . . 12 . 20 7 Largest 2 | 1 2 2 . 2 2 2 1 2 . . . 2 . 2 2 Hottest 226 | 20 100 90 . 90 90 90 45 90 . . . 75 . 75 226 Shots Fired 252 | 24 63 30 . 2 38 10 2 20 . . . 24 . 31 8 Gun 202 | 24 61 30 . 2 38 10 2 12 . . . 12 . 11 . Cannon 39 | . . . . . . . . . . . . 12 . 19 8 Launcher 9 | . . . . . . . . 8 . . . . . 1 . Special 2 | . 2 . . . . . . . . . . . . . . Kinetic 78 | 24 . . . . . . . . . . . 24 . 30 . Thermal 10 | . 2 . . . . . . . . . . . . . 8 Explosive 9 | . . . . . . . . 8 . . . . . 1 . Electromagnetic 155 | . 61 30 . 2 38 10 2 12 . . . . . . . Robot Hit Streak 14 | 8 14 10 . 9 13 2 1 4 . . . 9 . 7 9 Robot Miss Streak 6 | 2 5 2 . . 3 4 2 3 . . . 5 . 6 . Penetration Max . | . . . . . . . . . . . . . . . . Secondary Targets . | . . . . . . . . . . . . . . . . Shots Hit Robots 201 | 19 40 27 . 2 33 7 2 18 . 1 . 19 . 25 8 Core Hits 140 | 8 28 18 . 2 27 4 1 15 . . . 21 . 14 2 Critical Kills 1 | . . . . . . . . . . . . . . . 1 Critical Parts Destroyed 3 | . . . . . . . . 3 . . . . . . . Critical Strikes 6 | . . . . . . . . 3 . . . . . 2 1 Meltdown 1 | . . . . . . . . . . . . . . . 1 Blast 2 | . . . . . . . . . . . . . . 2 . Smash 3 | . . . . . . . . 3 . . . . . . . Melee Attacks 48 | . 10 . . . . 6 . 9 . 10 12 . . . 1 Impact 48 | . 10 . . . . 6 . 9 . 10 12 . . . 1 Slashing . | . . . . . . . . . . . . . . . . Piercing . | . . . . . . . . . . . . . . . . Sneak Attacks 1 | . . . . . . . . . . 1 . . . . . Combat Hostiles . | . . . . . . . . . . . . . . . . Follow-up Attacks . | . . . . . . . . . . . . . . . . Damage Inflicted 5665 | 147 950 565 . 105 1330 161 82 597 . 78 . 462 . 876 312 Guns 2697 | 147 736 429 . 22 611 125 28 131 . . . 229 . 239 . Cannons 1133 | . . . . . . . . . . . . 233 . 588 312 Explosions 1559 | . 214 136 . 83 719 36 54 268 . . . . . 49 . Melee 276 | . . . . . . . . 198 . 78 . . . . . Ramming . | . . . . . . . . . . . . . . . . Kinetic 1436 | 147 . . . . . . . . . . . 462 . 827 . Thermal 1204 | . 214 136 . 83 369 36 54 . . . . . . . 312 Explosive 667 | . . . . . 350 . . 268 . . . . . 49 . Electromagnetic 2082 | . 736 429 . 22 611 125 28 131 . . . . . . . Impact 276 | . . . . . . . . 198 . 78 . . . . . Slashing . | . . . . . . . . . . . . . . . . Piercing . | . . . . . . . . . . . . . . . . Highest Corruption 4 | . . . . . . . 1 1 1 4 . . . 1 3 Average Corruption 2 | . . . . . . . 1 1 1 4 . . . 1 2 Corruption Purged . | . . . . . . . . . . . . . . . . Corruption Blocked . | . . . . . . . . . . . . . . . . Effects 15 | . . . . . . . 1 4 . 4 . . . 1 5 Message Errors 3 | . . . . . . . . 1 . 1 . . . . 1 Matter Fused 5 | . . . . . . . . 1 . 3 . . . . 1 Heat Flow Errors 1 | . . . . . . . . 1 . . . . . . . Energy Discharges 2 | . . . . . . . . . . . . . . 1 1 Parts Rejected 1 | . . . . . . . . . . . . . . . 1 Data Loss (major) 1 | . . . . . . . . . . . . . . . 1 Misfires 1 | . . . . . . . . 1 . . . . . . . Alerts 1 | . . . . . . . 1 . . . . . . . . Overload Shots . | . . . . . . . . . . . . . . . . Overflow Damage 214 | . . 18 . . 29 . 12 99 . 28 . . . 28 . Projectiles 28 | . . . . . . . . . . . . . . 28 . Explosions 59 | . . 18 . . 29 . 12 . . . . . . . . Melee 127 | . . . . . . . . 99 . 28 . . . . . Knockbacks 9 | . . . . . . . . . . 1 . 4 . 4 . Impact 1 | . . . . . . . . . . 1 . . . . . Kinetic 8 | . . . . . . . . . . . . 4 . 4 . Secondary . | . . . . . . . . . . . . . . . . Self-Inflicted Damage 283 | . 13 23 . . 152 49 . 46 . . . . . . . Shots 7 | . 1 1 . . 3 1 . 1 . . . . . . . Rammed . | . . . . . . . . . . . . . . . . Targets Rammed . | . . . . . . . . . . . . . . . . Kicked . | . . . . . . . . . . . . . . . . Crushed . | . . . . . . . . . . . . . . . . Highest Temperature 312 | . 156 312 . 48 255 312 151 286 . . . 7 . 1 48 Average Temperature 85 | . 57 123 . 30 81 135 85 65 . . . 3 . 1 32 Received Heat Transfer 877 | . 69 160 . 24 162 . . 90 . . . 69 . 66 237 Effects 2 | . . 1 . . . 1 . . . . . . . . . Energy Bleed 2 | . . 1 . . . 1 . . . . . . . . . Siege Activations . | . . . . . . . . . . . . . . . . Martial Activations . | . . . . . . . . . . . . . . . . Shielding Activations . | . . . . . . . . . . . . . . . . Robots Disrupted 1 | . . 1 . . . . . . . . . . . . . Combat Hostiles 1 | . . 1 . . . . . . . . . . . . . Robots Corrupted 3 | . . . . . 1 . . 1 . 1 . . . . . Combat Hostiles 2 | . . . . . 1 . . 1 . . . . . . . Parts Fried 14 | . 4 . . . 5 2 . 1 . 2 . . . . . Impact Corruptions 5 | . . . . . . . . 3 . 2 . . . . . Robots Melted 1 | . . . . . . . . . . . . . . . 1 Combat Hostiles 1 | . . . . . . . . . . . . . . . 1 Parts Melted 2 | . . . . 1 . . . . . . . . . . 1 Heat Transferred 1296 | . 250 150 . 100 400 50 50 . . . . . . . 296 Parts Sabotaged 2 | . . . . . . . . . . . . . . . 2 Parts Stolen . | . . . . . . . . . . . . . . . . Parts Stripped . | . . . . . . . . . . . . . . . . Power Chain Reactions 14 | . 3 3 . 1 5 1 1 . . . . . . . . Alert | -11 -10 -10 -10 -9 -8 -7 -6 -6 -6 -5 -4 -4 -4 -3 -3 ------- Run | Yrd Mat Min Exi Min Mat Fac Fac Low Low Fac Fac Upp Upp Res Arm Maximum Alert Level 1 | . 1 . . . . . . . . . . . . . . Low Security (%) 96 | 100 85 100 . 100 100 100 100 . . 100 100 . . 100 100 Level 1 3 | . 14 . . . . . . . . . . . . . . Level 2 . | . . . . . . . . . . . . . . . . Level 3 . | . . . . . . . . . . . . . . . . Level 4 . | . . . . . . . . . . . . . . . . Level 5 . | . . . . . . . . . . . . . . . . High Security . | . . . . . . . . . . . . . . . . Max Security . | . . . . . . . . . . . . . . . . Peak Influence 237 | 5 237 76 . 76 144 17 12 . . 15 6 . . 24 136 Initial 52 | . . 52 . . 10 . . . . . 2 . . . 2 Average 40 | 1 108 13 . 20 30 1 1 . . . 1 . . 3 46 Influence Increases 1983 | 25 540 171 . 245 275 41 12 88 . 25 22 56 . 75 408 Destroy 0b10 Robot/C 884 | . 300 140 . 140 128 . . 80 . . . 48 . 32 16 Destroy 0b10 Robot/NC 105 | 25 40 . . . 20 8 4 . . 4 . . . 4 . Destroy Leader 140 | . 46 20 . 30 18 . . 8 . 2 . 8 . 8 . Allied During Kill 24 | . . . . 24 . . . . . . . . . . . Successful Hack 105 | . 26 . . . 9 13 . . . 15 . . . 7 35 Disable Machine 111 | . 60 . . 15 24 12 . . . . . . . . . Destroy Structure 158 | . 23 11 . 6 52 8 8 . . 4 22 . . 24 . Partial Spotted 48 | . . . . . . . . . . . . . . . 48 Lose Combat Pursuer 408 | . 45 . . 30 24 . . . . . . . . . 309 Influence Decreases 1850 | 25 406 305 . 218 302 39 2 100 . 19 28 52 4 69 281 Entered New Map 116 | . . 82 . . 17 . 2 5 . . 4 . 2 . 4 Time Decay 1305 | 25 406 173 . 160 161 39 . 59 . 19 24 30 2 43 164 Lost Part 247 | . . 50 . . . . . 36 . . . 22 . 26 113 Lost Ally 58 | . . . . 58 . . . . . . . . . . . Purge Threat 124 | . . . . . 124 . . . . . . . . . . Squads Dispatched 7 | . . . . . . 2 . . . . 1 . . 1 3 Investigation 1 | . . . . . . . . . . . 1 . . . . Extermination 4 | . . . . . . 1 . . . . . . . 1 2 Reinforcement 2 | . . . . . . 1 . . . . . . . . 1 Assault . | . . . . . . . . . . . . . . . . Garrison . | . . . . . . . . . . . . . . . . Intercept . | . . . . . . . . . . . . . . . . Searches Triggered . | . . . . . . . . . . . . . . . . Construction Impeded . | . . . . . . . . . . . . . . . . Haulers Reinforced . | . . . . . . . . . . . . . . . . Active Scanning Responses . | . . . . . . . . . . . . . . . . Cargo Convoy Interrupts . | . . . . . . . . . . . . . . . . Stealth | -11 -10 -10 -10 -9 -8 -7 -6 -6 -6 -5 -4 -4 -4 -3 -3 --------- Run | Yrd Mat Min Exi Min Mat Fac Fac Low Low Fac Fac Upp Upp Res Arm Distress Signals 10 | . 1 . . . 3 . . . . . . . . 1 5 Communications Jammed . | . . . . . . . . . . . . . . . . Distress Signals . | . . . . . . . . . . . . . . . . Times Spotted 127 | . 24 23 . 9 10 1 1 7 . 2 . 3 . 10 37 Peak Tracking Total 22 | . 4 22 . 3 4 1 1 3 . 2 . 3 . 6 12 Tactical Retreats 15 | . 2 . . 2 2 . . . . . . . . . 9 Traps | -11 -10 -10 -10 -9 -8 -7 -6 -6 -6 -5 -4 -4 -4 -3 -3 ------- Run | Yrd Mat Min Exi Min Mat Fac Fac Low Low Fac Fac Upp Upp Res Arm Traps Triggered 2 | . . . . . . . . . . 1 . . . . 1 Indirectly . | . . . . . . . . . . . . . . . . Trap Hack Attempts . | . . . . . . . . . . . . . . . . Triggered . | . . . . . . . . . . . . . . . . Disarmed . | . . . . . . . . . . . . . . . . Reprogrammed . | . . . . . . . . . . . . . . . . Reused . | . . . . . . . . . . . . . . . . Traps Extracted . | . . . . . . . . . . . . . . . . Installed . | . . . . . . . . . . . . . . . . Triggered . | . . . . . . . . . . . . . . . . Machines | -11 -10 -10 -10 -9 -8 -7 -6 -6 -6 -5 -4 -4 -4 -3 -3 ---------- Run | Yrd Mat Min Exi Min Mat Fac Fac Low Low Fac Fac Upp Upp Res Arm Machines Disabled 8 | . 4 . . 1 2 1 . . . . . . . . . Max in Single Turn 2 | . 1 . . 1 2 1 . . . . . . . . . Machines Repaired . | . . . . . . . . . . . . . . . . Machines Dismantled . | . . . . . . . . . . . . . . . . Machines Sabotaged . | . . . . . . . . . . . . . . . . Overloaded Fab Kills . | . . . . . . . . . . . . . . . . Hacking | -11 -10 -10 -10 -9 -8 -7 -6 -6 -6 -5 -4 -4 -4 -3 -3 --------- Run | Yrd Mat Min Exi Min Mat Fac Fac Low Low Fac Fac Upp Upp Res Arm Machines Accessed 26 | . 8 1 1 . 3 2 1 . . 5 1 . . 2 2 Terminals 19 | . 7 1 . . 2 2 1 . . 3 . . . 1 2 Fabricators 1 | . . . . . . . . . . . 1 . . . . Repair Stations 2 | . 1 . . . . . . . . 1 . . . . . Recycling Units . | . . . . . . . . . . . . . . . . Scanalyzers 2 | . . . . . 1 . . . . . . . . 1 . Garrison Access 1 | . . . . . . . . . . 1 . . . . . Total Hacks 82 | . 24 4 1 . 17 9 1 . . 14 3 . . 2 7 Successful 48 | . 14 1 1 . 13 3 . . . 7 2 . . 1 6 Failed 33 | . 10 3 . . 3 6 1 . . 7 1 . . 1 1 Catastrophic 3 | . 1 . . . . . 1 . . . . . . 1 . Database Lockouts 1 | . . . . . 1 . . . . . . . . . . Manual 58 | . 22 4 1 . 6 9 1 . . 7 . . . 1 7 Terminals 58 | . 22 4 . . 6 9 1 . . 8 . . . 1 7 Fabricators 3 | . . . . . . . . . . . 3 . . . . Repair Stations 5 | . 2 . . . . . . . . 3 . . . . . Recycling Units . | . . . . . . . . . . . . . . . . Scanalyzers 12 | . . . . . 11 . . . . . . . . 1 . Garrison Access 3 | . . . . . . . . . . 3 . . . . . Terminal Hacks 15 | . 4 1 1 . 2 1 . . . 2 . . . . 4 Record 1 | . . . . . . . . . . 1 . . . . . Robot Analysis 1 | . 1 . . . . . . . . . . . . . . Level Access Points 1 | . . . . . . . . . . . . . . . 1 Branch Access Points 4 | . 1 1 . . 1 . . . . . . . . . 1 Terminal Index 1 | . . . . . . . . . . 1 . . . . . Unreport Threat 1 | . . . . . 1 . . . . . . . . . . Recall Investigation 2 | . . . . . . 1 . . . . . . . . 1 Recall Extermination 1 | . . . . . . . . . . . . . . . 1 Zone Layout 2 | . 2 . . . . . . . . . . . . . . Proto ID Catalog 1 | . . . 1 . . . . . . . . . . . . Fabricator Hacks 2 | . . . . . . . . . . . 2 . . . . Load Schematic 1 | . . . . . . . . . . . 1 . . . . Build 1 | . . . . . . . . . . . 1 . . . . Repair Station Hacks 4 | . 2 . . . . . . . . 2 . . . . . Scan Component 2 | . 1 . . . . . . . . 1 . . . . . Repair 2 | . 1 . . . . . . . . 1 . . . . . Recycling Unit Hacks . | . . . . . . . . . . . . . . . . Scanalyzer 10 | . . . . . 9 . . . . . . . . 1 . Insert Component 2 | . . . . . 2 . . . . . . . . . . Analyze 3 | . . . . . 3 . . . . . . . . . . Retrieve Study 5 | . . . . . 4 . . . . . . . . 1 . Garrison Access Hacks . | . . . . . . . . . . . . . . . . Unauthorized Hacks 17 | . 8 . . . 2 2 . . . 3 . . . . 2 Terminals 17 | . 8 . . . 2 2 . . . 3 . . . . 2 Track 14 | . 6 . . . 2 2 . . . 3 . . . . 1 Botnet 3 | . 2 . . . . . . . . . . . . . 1 Fabricators . | . . . . . . . . . . . . . . . . Repair Stations . | . . . . . . . . . . . . . . . . Recycling Units . | . . . . . . . . . . . . . . . . Scanalyzers . | . . . . . . . . . . . . . . . . Garrison Access . | . . . . . . . . . . . . . . . . Data Cores Recovered 2 | . . . . . . 1 1 . . . . . . . . Used . | . . . . . . . . . . . . . . . . Hacking Detections 23 | . 8 1 . . 2 2 1 . . 5 1 . . 1 2 Full Trace Events 1 | . . . . . . . . . . . 1 . . . . Feedback Events . | . . . . . . . . . . . . . . . . Feedback Blocked . | . . . . . . . . . . . . . . . . Robot Schematics Acquired . | . . . . . . . . . . . . . . . . Robots Built . | . . . . . . . . . . . . . . . . Authchips . | . . . . . . . . . . . . . . . . Time . | . . . . . . . . . . . . . . . . Total Robot Build Rating . | . . . . . . . . . . . . . . . . Part Schematics Acquired 2 | . . . . . 2 . . . . . . . . . . Parts Built . | . . . . . . . . . . . . . . . . Authchips . | . . . . . . . . . . . . . . . . Time 116 | . . . . . . . . . . . 116 . . . . Total Part Build Rating . | . . . . . . . . . . . . . . . . Part Studies Acquired 5 | . . . . . 4 . . . . . . . . 1 . Parts Repaired 2 | . 1 . . . . . . . . 1 . . . . . Time 111 | . 51 . . . . . . . . 60 . . . . . Parts Recycled . | . . . . . . . . . . . . . . . . Recycled Matter . | . . . . . . . . . . . . . . . . Retrieved Matter . | . . . . . . . . . . . . . . . . Retrieved Components . | . . . . . . . . . . . . . . . . Parts Scanalyzed 2 | . . . . . 2 . . . . . . . . . . Part Schematics Acquired 2 | . . . . . 2 . . . . . . . . . . Parts Damaged . | . . . . . . . . . . . . . . . . Bothacking | -11 -10 -10 -10 -9 -8 -7 -6 -6 -6 -5 -4 -4 -4 -3 -3 ------------ Run | Yrd Mat Min Exi Min Mat Fac Fac Low Low Fac Fac Upp Upp Res Arm Used RIF Installer . | . . . . . . . . . . . . . . . . Robots Hacked . | . . . . . . . . . . . . . . . . Non-combat . | . . . . . . . . . . . . . . . . Combat . | . . . . . . . . . . . . . . . . Robot Hacks Applied . | . . . . . . . . . . . . . . . . Relay Couplers Released . | . . . . . . . . . . . . . . . . Fabnet Peak Effective % . | . . . . . . . . . . . . . . . . Robots Rewired . | . . . . . . . . . . . . . . . . Allies Hacked . | . . . . . . . . . . . . . . . . Hacks Repelled . | . . . . . . . . . . . . . . . . Allies | -11 -10 -10 -10 -9 -8 -7 -6 -6 -6 -5 -4 -4 -4 -3 -3 -------- Run | Yrd Mat Min Exi Min Mat Fac Fac Low Low Fac Fac Upp Upp Res Arm Total Allies 5 | . . . . 5 . . . . . . . . . . . Largest Group 5 | . . . . 5 1 . . . . . . . . . . Highest-Rated Group 85 | . . . . 85 14 . . . . . . . . . . Highest-Rated Ally 31 | . . . . 31 14 . . . . . . . . . . Total Orders . | . . . . . . . . . . . . . . . . Ally Attacks 36 | . . . . 36 . . . . . . . . . . . Total Damage 424 | . . . . 424 . . . . . . . . . . . Kills 5 | . . . . 5 . . . . . . . . . . . Allies Corrupted . | . . . . . . . . . . . . . . . . Allies Melted . | . . . . . . . . . . . . . . . . Intel | -11 -10 -10 -10 -9 -8 -7 -6 -6 -6 -5 -4 -4 -4 -3 -3 ------- Run | Yrd Mat Min Exi Min Mat Fac Fac Low Low Fac Fac Upp Upp Res Arm Active Infowar (turns) 3607 | 137 1257 9 . . 450 226 . 102 12 243 159 197 28 354 433 Optics 1412 | . . . . . . . . . . 241 159 197 28 354 433 Terrain 940 | . . . . . 450 226 . 102 12 150 . . . . . Structural 285 | . . . . . . . . . . 1 . . . 21 263 Seismic 1403 | 137 1257 9 . . . . . . . . . . . . . Cloaking 295 | . . . . . . . . . . . . . . 295 . ECM 2 | . . . . . . . . . . 1 1 . . . . Robot Analysis Total 1 | . 1 . . . . . . . . . . . . . . Derelict Logs Recovered 6 | . . 2 . 2 . . . . 1 . . 1 . . . Drone Launches . | . . . . . . . . . . . . . . . . Drone Recoveries . | . . . . . . . . . . . . . . . . Exploration | -11 -10 -10 -10 -9 -8 -7 -6 -6 -6 -5 -4 -4 -4 -3 -3 ------------- Run | Yrd Mat Min Exi Min Mat Fac Fac Low Low Fac Fac Upp Upp Res Arm Turns Passed 6619 | 256 1417 840 597 666 466 369 52 368 12 349 159 197 28 354 489 Spaces Moved 6230 | 124 687 600 477 474 300 312 152 787 52 498 372 451 28 297 619 Core 86 | 4 . . . . . . . . . . . . . . 82 Treads 834 | 120 687 27 . . . . . . . . . . . . . Legs . | . . . . . . . . . . . . . . . . Wheels 1875 | . . 573 477 474 300 6 . . . . . . . 45 . Hover 339 | . . . . . . . . . . . . . . 118 221 Flight 3096 | . . . . . . 306 152 787 52 498 372 451 28 134 316 Fastest Speed 21 | 50 160 110 125 125 85 21 21 21 21 26 26 26 103 52 32 Average Speed 78 | 157 160 126 125 125 101 22 21 21 21 26 26 35 103 82 64 Slowest Speed 520 | 160 160 240 125 125 125 85 21 24 21 96 26 103 103 103 520 Overloaded Moves . | . . . . . . . . . . . . . . . . Propulsion Burnouts . | . . . . . . . . . . . . . . . . Robots Hopped 4 | . . . . . . . 2 2 . . . . . . . Potential Cave-ins . | . . . . . . . . . . . . . . . . Cave-ins Triggered . | . . . . . . . . . . . . . . . . Exploration Rate (%) 39 | 7 93 91 92 82 25 9 5 63 11 16 12 69 17 11 31 Regions Visited 15 Branch Regions 8 Pre-discovered Areas 1 | . . . . . . . . . 1 . . . . . . Known Exits Taken 1 | . 1 . . . . . . . . . . . . . . Unknown Exits Taken 14 | 1 . 1 1 1 1 1 1 1 1 1 1 1 1 1 . Scrap Searched 7 | . . 1 . 2 . . . 1 1 . . 2 . . . Spaces Dug 28 | . 9 . . . . 5 . . . 2 12 . . . . Terrain Destroyed 186 | . 22 12 . 6 56 8 10 40 . 2 12 7 . 11 . Melee 26 | . 7 . . . . 5 . . . 2 12 . . . . Projectile 13 | . 2 . . . . . . . . . . 7 . 4 . AOE 147 | . 13 12 . 6 56 3 10 40 . . . . . 7 . Terrain Rammed . | . . . . . . . . . . . . . . . . Walls Destroyed . | . . . . . . . . . . . . . . . . Machines Disabled . | . . . . . . . . . . . . . . . . Actions | -11 -10 -10 -10 -9 -8 -7 -6 -6 -6 -5 -4 -4 -4 -3 -3 --------- Run | Yrd Mat Min Exi Min Mat Fac Fac Low Low Fac Fac Upp Upp Res Arm Total 7611 | 166 920 650 479 546 429 591 166 948 52 696 409 465 27 373 694 Wait 948 | . 138 22 . 68 77 236 9 135 . 167 24 2 . 44 26 Move 6207 | 123 686 599 476 473 299 311 147 782 51 497 371 450 27 296 619 Hop 4 | . . . . . . . 2 2 . . . . . . . Pick Up 65 | 9 19 3 1 2 7 6 1 2 1 7 1 . . 1 5 Fast Attach 36 | 7 3 3 . . 5 . 1 . . 1 . . . 5 11 Attach 33 | . . 3 . . 7 6 1 4 . 4 1 . . 3 4 Detach 5 | . . . . . 5 . . . . . . . . . . Swap 37 | 1 15 1 . . 2 7 2 1 . 6 . 1 . 1 . Drop 56 | 2 16 1 2 2 8 11 1 . . 4 . . . 3 6 Fire 157 | 24 33 18 . 1 19 8 2 13 . . . 12 . 20 7 Melee 48 | . 10 . . . . 6 . 9 . 10 12 . . . 1 Ram . | . . . . . . . . . . . . . . . . Kick . | . . . . . . . . . . . . . . . . Crush . | . . . . . . . . . . . . . . . . Escape Stasis . | . . . . . . . . . . . . . . . . Rewire 15 | . . . . . . . . . . . . . . . 15 Trap . | . . . . . . . . . . . . . . . . Miscellaneous . | . . . . . . . . . . . . . . . . Route ------- -11/Scrapyard -10/Materials (discovered 6 exits: *Mat x3 / *Min x2 / [*Sub]) -10/Mines (discovered 4 exits: *Mat x2 / *Exi / [*Sub]) -10/Exiles (discovered 2 exits: [*Min x2]) -9/Mines -8/Materials (discovered 3 exits: *Fac / Sto x2) -7/Factory -6/Factory -6/Lower Caves -6/Lower Caves -5/Factory -4/Factory -4/Upper Caves -4/Upper Caves -3/Research -3/Armory (discovered 2 exits: Res x2) History --------- Turn | Location | Event 7 | -11/Scrapyard | Discovered new exit (range 16) 257 | -11/Scrapyard | Entered Materials 301 | -10/Materials | Build established: Mutant 758 | -10/Materials | Discovered new exit (range 8) 773 | -10/Materials | Identified exit to Mines 808 | -10/Materials | Discovered new exit (range 12) 914 | -10/Materials | Discovered new exit (range 11) 1252 | -10/Materials | Discovered new exit (range 15) 1444 | -10/Materials | Discovered new exit (range 13) 1611 | -10/Materials | Repaired Imp. EM Shotgun 1674 | -10/Materials | Entered Mines 1675 | -10/Mines | Assembled infested the area 1737 | -10/Mines | Lost 3 parts (1n1u1w) 1774 | -10/Mines | Identified exit to Materials 1849 | -10/Mines | Discovered exit to Materials (range 7) 1954 | -10/Mines | Received a Rocket Launcher from a helpful Derelict 2061 | -10/Mines | Learned 2 Materials zone layouts 2291 | -10/Mines | Discovered new exit (range 11) 2509 | -10/Mines | Deemed a non-threat by the Exiles lab entrance 2509 | -10/Mines | Discovered new exit (range 5) 2514 | -10/Mines | Entered Exiles 2533 | -10/Exiles | Discovered new exit (range 15) 2574 | -10/Exiles | Met 8R-AWN 2596 | -10/Exiles | Met EX-HEX 2656 | -10/Exiles | Met EX-DEC 2693 | -10/Exiles | Met EX-BIN 2711 | -10/Exiles | Aligned with FarCom system 2712 | -10/Exiles | Given EX-Vault access code 2757 | -10/Exiles | Opened EX-Vault 2768 | -10/Exiles | Found 0b10 Alert Chip 2795 | -10/Exiles | Warned to stay clear of 0b10 Research branches 2909 | -10/Exiles | Visited The Gauntlet 3096 | -10/Exiles | Discovered new exit (range 14) 3111 | -10/Exiles | Left Exiles lab with 0b10 Alert Chip 3111 | -10/Exiles | Entered Mines 3133 | -9/Mines | Learned location of 1 exit from Materials 3300 | -9/Mines | Found a hidden stash of uninstalled traps 3313 | -9/Mines | Found a damaged Exp. Sensor Array with a note attached 3316 | -9/Mines | Found Prototype Device 3482 | -9/Mines | Assisted by bots powering up and referring to "LRC-V3" 3730 | -9/Mines | Discovered new exit (range 8) 3777 | -9/Mines | Entered Materials 3777 | -8/Materials | Accompanied by 1 ally 3777 | -8/Materials | Evolved 4 slots: Propulsion x2, Utility x2 3778 | -8/Materials | Identified exit to Storage 3821 | -8/Materials | Central database locked down 4218 | -8/Materials | Discovered new exit (range 10) 4243 | -8/Materials | Entered Factory 4243 | -7/Factory | Evolved 2 slots: Propulsion x2 4527 | -7/Factory | Discovered new exit (range 12) 4555 | -7/Factory | Build established: Scout 4612 | -7/Factory | Entered another Factory area 4612 | -6/Factory | Evolved 2 slots: Utility x2 4647 | -6/Factory | Discovered new exit (range 13) 4664 | -6/Factory | Entered Lower Caves 4690 | -6/Lower Caves | Attracted the attention of an 0b10 checkpoint 4785 | -6/Lower Caves | Spotted B-75 Beast 4801 | -6/Lower Caves | Encountered a Warlord checkpoint 4906 | -6/Lower Caves | Lost 3 parts (1p1n1u) 4945 | -6/Lower Caves | Build established: Hacker-Sprinter 5026 | -6/Lower Caves | Discovered new exit (range 9) 5032 | -6/Lower Caves | Entered another Lower Caves area 5039 | -6/Lower Caves | Discovered new exit (range 8) 5044 | -6/Lower Caves | Entered Factory 5044 | -5/Factory | Evolved 2 slots: Propulsion x1, Utility x1 5128 | -5/Factory | Repaired Imp. VTOL Module 5392 | -5/Factory | Discovered new exit (range 9) 5393 | -5/Factory | Entered another Factory area 5393 | -4/Factory | Evolved 2 slots: Propulsion x1, Utility x1 5435 | -4/Factory | Spotted B-86 Titan 5548 | -4/Factory | Discovered new exit (range 15) 5552 | -4/Factory | Entered Upper Caves 5602 | -4/Upper Caves | Learned Research security intel 5606 | -4/Upper Caves | Spotted B-86 Titan 5721 | -4/Upper Caves | Lost 4 parts (4n) 5737 | -4/Upper Caves | Discovered new exit (range 14) 5749 | -4/Upper Caves | Entered another Upper Caves area 5760 | -4/Upper Caves | Discovered new exit (range 19) 5777 | -4/Upper Caves | Entered Research 5777 | -3/Research | Evolved 2 slots: Utility x2 6080 | -3/Research | Discovered new exit (range 19) 6131 | -3/Research | Entered Armory 6151 | -3/Armory | Lost 4 parts (1u3w) 6230 | -3/Armory | Spotted B-86 Titan 6255 | -3/Armory | Identified exit to Research 6461 | -3/Armory | Lost 11 parts (1p3n6u1w) 6538 | -3/Armory | Core integrity fell below 50% 6585 | -3/Armory | Core integrity fell below 20% 6589 | -3/Armory | Lost 5 parts (4n1w) 6620 | -3/Armory | Destroyed by H-77 Assassin with Coil Gun Last Messages --------------- 06564_ E-15 Imp destroyed. 06565_ Acquired 13 matter. 06565_ E-15 Imp destroyed. 06567_ Acquired Cesium-ion Thruster. 06570_ Acquired Segregator. 06578_ O-32 Director sends out distress signal. 06578_ O-32 Director: "IFF HANDSHAKE FAILED. SECURING TERMINAL." 06582_ ALERT: Potential suspicious activity detected, Programmers report to Armory Zone 7U. 06584_ Knocked back. 06591_ Cesium-ion Thruster destroyed. 06591_ Knocked back. 06594_ Cesium-ion Thruster destroyed. 06619_ C-30 ARC bursts open, deploying its payload. 06619_ H-77 Assassin unfolds itself. 06619_ Penetrated by Slug. 06619_ Slug penetrates Wall. Map ----- +----------------------------------------------------+ | ?????????????????????????????????????????????????? | | ?????????????????????????????????????????????????? | | ?????????????????????????????????????????????????? | | ?????????????????????????????????????????????????? | | ?????????????????????????????????????????????????? | | ?????????????????????????????????????????????????? | | ?????????????????????????????????????????????????? | | ?????????????????????????????????????????????????? | | ?????????????????????????????????????????????????? | | ?????????????#########???????????????????????????? | | ?????????????# ]???????????????????????????? | | ?????????????# T ??????????################# | | ?????????????# ########### ###"######## | | ???????????????? / + | | ???????????????????????# w% H % | | ???????????????????????# ######## ####+####### | | ???????????????????????# #??????###### | | ???????????????????????# #?##?###????# | | ???????????????????????# ##! ????# | | ???????????????????????# ## ???# | | ???????????????????????# ## """ """ Y# """ """ | | ???????????????????????# ## """ """ # """ """ [ | | ???????????????????????# ## """ """ # """ """ | | ???????????????????????#Y ## # | | ??????????????????????##hh## """ """ # """ """ | | ??????????????????????# @ # """ """ # """ """ | | ??????????????????????# "" # """ """ # """ """ | | ??????????????????????# T" + # | | ??????????????????????# # * / ############ | | ??????????????????????#################??????????? | | ????????d????????????????????????????????????????? | | ?????????????????????????????????????????????????? | | ?????????????????????????????????????????????????? | | ??????????????????o??????????????????????????????? | | ?????????????????????????????????????????????????? | | ?????????????????????????????????????????????????? | | ?????????????????????????????????????????????????? | | ?????????????????????????????????????????????????? | | ?????????????????????????????????????????????????? | | ?????????????????????????????????????????????????? | | ?????????????????????????????????????????????????? | | ?????????????????????????????????????????????????? | | ?????????????????????????????????????????????????? | | ?????????????????????????????????????????????????? | | ?????????????????????????????????????????????????? | | ?????????????????????????????????????????????????? | | ?????????????????????????????????????????????????? | | ?????????????????????????????????????????????????? | | ?????????????????????????????????????????????????? | | ?????????????????????????????????????????????????? | +----------------------------------------------------+ Best States ------------- Heat Dissipation 77 Energy Generation 21 Energy Capacity 300 Matter Stores 300 Matter Capacity 300 Sight Range 22 Terrain Scan Range 16 Terrain Scan Density 10 Cloak Strength 2 Power Amplification 20 Additional Mass Support 6 Armor Coverage 225 Evasion (%) 65 Recoil Reduction 2 Offensive Hacking 20 Item Schematics ----------------- Flight Unit | -8/Materials | Scanalyzed Imp. VTOL Module | -8/Materials | Scanalyzed Robot Schematics ------------------ None Fabricated ------------ Nothing Repaired ---------- Imp. EM Shotgun | 12% | -10/Materials Imp. VTOL Module | 70% | -5/Factory Studied --------- Flight Unit | -8/Materials | Hacked Wheel | -8/Materials | Hacked Lgt. Nuclear Core | -8/Materials | Hacked Hammer | -8/Materials | Hacked Angular Momentum Engine | -3/Research | Hacked Alien Tech Used ----------------- None Achievements -------------- Hunted Maybe Next Time I'll Detach My Launcher Challenges ------------ None Game ------ Seed JammingThunderWartreads Manual? 0 Play Time 01:20:15 Cumulative 41.8 hours Start 2026.04.01 @ 16:19:30 End 2026.04.01 @ 23:23:56 Sessions 2 Manual Loads 0 Difficulty Rogue Special Mode None Game No. 51 Rogue 51 Adventurer 0 Explorer 0 Win Type - Total 0 Types 0/0/0/0/0/0/0/0/0/0 Lore% 16 Gallery% 32 Achievement% 24 Wizard Run 0 Options --------- Layout 2 ASCII 0 Keyboard 0 Movement Numpad Keybinds 1 Fullscreen 1 Font 24/Smallcaps Map View 50x44 Zoom Use 0% Tactical HUD 1 Map Filters NONE Filters NONE Steam 1 RUN: 2fa021c5-c035-4abb-94ac-b5891d95d7bb